Cogmind - Beta 16.1 @@@ ROGUE MODE // 2026.02.26 @ 10:02:42 Player: Fleshy Vegetable Bird Result: Destroyed by QP-NX5(R) with Subdweller Laser Performance ------------- Evolutions (0) 0 Regions Visited (2) 400 Robots Destroyed (32) 160 Value Destroyed (598) 598 Prototype IDs (0) 0 Alien Tech Used (0) 0 Bonus (0) 0 TOTAL SCORE: 1158 Bonus ------- None Cogmind --------- Core Integrity 0/250 Matter 148/300 Energy 247/250 System Corruption 2% Temperature Cool (6) Movement Treading (480) Ox4 Location -10/Subcaves Parts ------- > --- POWER (1) -------- Ion Engine > --- PROPULSION (2) --- Light Treads Wheel > --- UTILITY (2) ------ Huge Storage Unit Makeshift Light Armor Plating > --- WEAPON (2) ------- Medium Laser Battle Cannon > --- INVENTORY (25) --- Subdweller Power Source Subdweller Power Source Light Treads Wheel Wheel Wheel Wheel Subdweller Monowheel Subdweller Monowheel Huge Storage Unit High-capacity Matter Pod (200) Structural Scanner Subdweller Optics Seismic Detector Subdweller Laser Subdweller Laser Subdweller Laser Subdweller Beam Cannon Mining Laser Peak State ------------ > --- POWER ------------ Ion Engine > --- PROPULSION ------- Light Treads Wheel > --- UTILITY ---------- Huge Storage Unit Makeshift Light Armor Plating > --- WEAPON ----------- Medium Laser Battle Cannon > --- INVENTORY -------- Subdweller Power Source Subdweller Power Source Wheel Wheel Wheel Subdweller Monowheel Subdweller Monowheel Huge Storage Unit High-capacity Matter Pod Structural Scanner Subdweller Optics Seismic Detector Subdweller Laser Subdweller Laser Subdweller Beam Cannon Mining Laser [Rating: 13] Favorites ----------- Power Ion Engine Engine Ion Engine Propulsion Wheel Treads Light Treads Wheel Wheel Utility Huge Storage Unit Device Seismic Detector Storage Huge Storage Unit Protection Light Armor Plating Weapon Assault Rifle Energy Gun Medium Laser Energy Cannon Subdweller Beam Cannon Ballistic Gun Assault Rifle Ballistic Cannon Battle Cannon Special Weapon Mining Laser Build | -11 -10 -10 ------- Run | Yrd Mat Sub Slots Evolved . | . . . Power . | . . . Propulsion . | . . . Utility . | . . . Weapon . | . . . Parts Attached 24 | 7 13 4 Power 3 | 1 1 1 Engine 3 | 1 1 1 Core . | . . . Reactor . | . . . Propulsion 7 | 2 5 . Treads 2 | . 2 . Leg . | . . . Wheel 5 | 2 3 . Hover . | . . . Flight . | . . . Utility 7 | 2 3 2 Device 3 | 1 1 1 Storage 2 | 1 1 . Processor . | . . . Hackware . | . . . Protection 2 | . 1 1 Artifact . | . . . Weapon 7 | 2 4 1 Energy Gun 3 | 1 2 . Energy Cannon 1 | . . 1 Ballistic Gun 1 | 1 . . Ballistic Cannon 1 | . 1 . Launcher . | . . . Special Weapon 1 | . 1 . Impact Weapon . | . . . Slashing Weapon . | . . . Piercing Weapon . | . . . Special Melee Weapon . | . . . Unidentified Prototypes . | . . . Parts Lost 5 | . . 5 Power 1 | . . 1 Propulsion 2 | . . 2 Utility 1 | . . 1 Weapon 1 | . . 1 Highest Loss Streak 3 | . . 3 To Critical Strikes . | . . . Average Backups 13 | 3 10 16 Power 1 | . 1 1 Propulsion 5 | 2 4 5 Utility 4 | . 3 5 Weapon 2 | . 1 3 Tool/Special . | . . . Unused Backups 21 | 3 4 14 Power 2 | . . 2 Propulsion 11 | 2 3 6 Utility 4 | . 1 3 Weapon 4 | 1 . 3 Tool/Special . | . . . Average Slot Usage (%) 99 | . 100 99 Engine 13 | . 14 13 Treads 9 | . 1 14 Wheel 18 | . 26 13 Device 5 | . 11 2 Storage 14 | . 14 14 Protection 8 | . 2 11 Energy Gun 5 | . 9 3 Ballistic Gun 11 | . 12 9 Ballistic Cannon 4 | . . 6 Special Weapon 6 | . 4 7 Peak Build Rating 13 | 9 9 13 Average Rating 9 | 6 7 10 On Entrance 6 | . 9 9 Avg Prop Armor Cover (%) 9 | 6 . 9 Naked Turns . | . . . Heaviest Build 98 | 14 93 98 Greatest Support 40 | 20 40 20 Greatest Overweight (x) 9 | 2 4 9 Average Overweight (x) 5 | . 2 8 Largest Inventory Capacity 25 | 8 25 25 Average Capacity 22 | 7 21 25 Most Carried 19 | 8 15 19 Average Carried 13 | 4 10 16 Final Capacity 25 | 8 25 25 Final Carried 19 | 8 15 19 Class Distribution -------------------- 100% | Mutant Dominant Class ---------------- Mutant | -10/Materials Mutant | -10/Subcaves Resources | -11 -10 -10 ----------- Run | Yrd Mat Sub Matter Collected 1249 | 281 622 346 Remotely . | . . . Salvage Created 789 | 158 328 303 Parts 72 | 19 23 30 Haulers Intercepted 1 | . 1 . Recyclers Shooed 1 | 1 . . Parts Field Recycled . | . . . Retrieved Matter . | . . . Parts Self-Destructed 19 | . . 19 Prevented . | . . . Parts Restored . | . . . Kills | -11 -10 -10 ------- Run | Yrd Mat Sub Combat Hostiles Destroyed 21 | . 6 15 Guns 7 | . 4 3 Cannons 14 | . 2 12 Classes Destroyed 8 | 2 5 1 Tunneler 6 | 5 1 . Hauler 1 | . 1 . Recycler 2 | 1 1 . Watcher 2 | . 2 . Swarmer 11 | . 3 8 Grunt 3 | . 2 1 Sentry 1 | . . 1 Subdweller 6 | . 1 5 Best Kill Streak 4 | 4 3 4 Combat Bots Only 4 | . 3 4 Max Kills in Single Turn 2 | 1 1 2 Gunslinging . | . . . Exploded . | . . . Melee . | . . . Uniques/NPCs Destroyed . | . . . Combat | -11 -10 -10 -------- Run | Yrd Mat Sub Hostile Shots Fired 126 | . 49 77 Missed 43 | . 20 23 Hits 83 | . 29 54 Projectile 83 | . 29 54 Critical Strikes 1 | . 1 . Damage Taken 1088 | . 284 804 Core 261 | . 100 161 Absorbed by Shields . | . . . Core Remaining (%) 100 | 100 . . Volleys Fired 123 | 16 51 56 Largest 2 | 2 2 2 Hottest 130 | 60 100 130 Shots Fired 212 | 32 89 91 Gun 136 | 32 69 35 Cannon 43 | . 8 35 Launcher . | . . . Special 33 | . 12 21 Kinetic 121 | 16 48 57 Thermal 91 | 16 41 34 Explosive . | . . . Electromagnetic . | . . . Robot Hit Streak 14 | 13 8 14 Robot Miss Streak 5 | 2 5 3 Penetration Max . | . . . Secondary Targets 1 | . 1 . Max Gunslinging Chain 1 | . 1 . Shots Hit Robots 113 | 24 41 48 Core Hits 45 | 7 16 22 Critical Kills . | . . . Critical Parts Destroyed . | . . . Critical Strikes 3 | . 2 1 Burn 2 | . 2 . Blast 1 | . . 1 Melee Attacks . | . . . Impact . | . . . Slashing . | . . . Piercing . | . . . Sneak Attacks . | . . . Combat Hostiles . | . . . Follow-up Attacks . | . . . Damage Inflicted 1742 | 282 573 887 Guns 1047 | 282 453 312 Cannons 671 | . 96 575 Explosions . | . . . Melee . | . . . Ramming . | . . . Kinetic 1262 | 137 379 746 Thermal 480 | 145 194 141 Explosive . | . . . Electromagnetic . | . . . Impact . | . . . Slashing . | . . . Piercing . | . . . Highest Corruption 2 | . 2 2 Average Corruption 2 | . 2 2 Corruption Purged . | . . . Corruption Blocked . | . . . Effects 31 | . 7 24 Message Errors 8 | . 1 7 Matter Fused 9 | . 2 7 Heat Flow Errors 4 | . 1 3 Energy Discharges 4 | . 2 2 Parts Rejected 1 | . . 1 Data Loss (minor) 2 | . . 2 Data Loss (major) 2 | . . 2 Misfires 1 | . 1 . Overload Shots . | . . . Overflow Damage . | . . . Projectiles . | . . . Explosions . | . . . Melee . | . . . Knockbacks 6 | . 3 3 Impact . | . . . Kinetic 5 | . 2 3 Secondary 1 | . 1 . Self-Inflicted Damage . | . . . Shots . | . . . Rammed . | . . . Targets Rammed . | . . . Kicked . | . . . Crushed . | . . . Highest Temperature 257 | . 257 200 Average Temperature 48 | . 46 66 Received Heat Transfer 237 | . 81 156 Siege Activations . | . . . Martial Activations . | . . . Shielding Activations . | . . . Robots Disrupted . | . . . Combat Hostiles . | . . . Robots Corrupted . | . . . Combat Hostiles . | . . . Parts Fried . | . . . Impact Corruptions . | . . . Robots Melted . | . . . Combat Hostiles . | . . . Parts Melted 1 | . . 1 Heat Transferred 1375 | 325 680 370 Parts Sabotaged . | . . . Parts Stolen . | . . . Parts Stripped . | . . . Power Chain Reactions . | . . . Alert | -11 -10 -10 ------- Run | Yrd Mat Sub Maximum Alert Level . | . . . Low Security (%) 100 | 100 100 . Level 1 . | . . . Level 2 . | . . . Level 3 . | . . . Level 4 . | . . . Level 5 . | . . . High Security . | . . . Max Security . | . . . Peak Influence 70 | 10 70 . Initial . | . . . Average 6 | 1 6 . Influence Increases 443 | 30 173 240 Destroy 0b10 Robot/C 300 | . 100 200 Destroy 0b10 Robot/NC 55 | 30 25 . Destroy Leader 36 | . 26 10 Successful Hack 10 | . 10 . Destroy Structure 12 | . 12 . Lose Combat Pursuer 30 | . . 30 Influence Decreases 401 | 30 140 231 Entered New Map 17 | . . 17 Time Decay 374 | 30 140 204 Lost Part 10 | . . 10 Squads Dispatched 1 | . 1 . Investigation . | . . . Extermination . | . . . Reinforcement 1 | . 1 . Assault . | . . . Garrison . | . . . Intercept . | . . . Searches Triggered . | . . . Construction Impeded . | . . . Haulers Reinforced . | . . . Active Scanning Responses . | . . . Cargo Convoy Interrupts . | . . . Stealth | -11 -10 -10 --------- Run | Yrd Mat Sub Distress Signals . | . . . Communications Jammed . | . . . Distress Signals . | . . . Times Spotted 30 | . 12 18 Peak Tracking Total 6 | . 3 6 Tactical Retreats 2 | . 1 1 Traps | -11 -10 -10 ------- Run | Yrd Mat Sub Traps Triggered 3 | . 1 2 Indirectly . | . . . Trap Hack Attempts . | . . . Triggered . | . . . Disarmed . | . . . Reprogrammed . | . . . Reused . | . . . Traps Extracted . | . . . Installed . | . . . Triggered . | . . . Machines | -11 -10 -10 ---------- Run | Yrd Mat Sub Machines Disabled . | . . . Max in Single Turn . | . . . Machines Repaired . | . . . Machines Dismantled . | . . . Machines Sabotaged . | . . . Overloaded Fab Kills . | . . . Hacking | -11 -10 -10 --------- Run | Yrd Mat Sub Machines Accessed 4 | . 4 . Terminals 4 | . 4 . Fabricators . | . . . Repair Stations . | . . . Recycling Units . | . . . Scanalyzers . | . . . Garrison Access . | . . . Total Hacks 12 | . 12 . Successful 4 | . 4 . Failed 8 | . 8 . Catastrophic 1 | . 1 . Database Lockouts . | . . . Manual 11 | . 11 . Terminals 12 | . 12 . Fabricators . | . . . Repair Stations . | . . . Recycling Units . | . . . Scanalyzers . | . . . Garrison Access . | . . . Terminal Hacks . | . . . Fabricator Hacks . | . . . Repair Station Hacks . | . . . Recycling Unit Hacks . | . . . Scanalyzer . | . . . Garrison Access Hacks . | . . . Unauthorized Hacks 4 | . 4 . Terminals 4 | . 4 . Botnet 3 | . 3 . Operators 1 | . 1 . Fabricators . | . . . Repair Stations . | . . . Recycling Units . | . . . Scanalyzers . | . . . Garrison Access . | . . . Data Cores Recovered . | . . . Used . | . . . Hacking Detections 4 | . 4 . Full Trace Events . | . . . Feedback Events . | . . . Feedback Blocked . | . . . Robot Schematics Acquired . | . . . Robots Built . | . . . Authchips . | . . . Time . | . . . Total Robot Build Rating . | . . . Part Schematics Acquired . | . . . Parts Built . | . . . Authchips . | . . . Time . | . . . Total Part Build Rating . | . . . Part Studies Acquired . | . . . Parts Repaired . | . . . Time . | . . . Parts Recycled . | . . . Recycled Matter . | . . . Retrieved Matter . | . . . Retrieved Components . | . . . Parts Scanalyzed . | . . . Part Schematics Acquired . | . . . Parts Damaged . | . . . Bothacking | -11 -10 -10 ------------ Run | Yrd Mat Sub Used RIF Installer . | . . . Robots Hacked . | . . . Non-combat . | . . . Combat . | . . . Robot Hacks Applied . | . . . Relay Couplers Released . | . . . Fabnet Peak Effective % . | . . . Robots Rewired . | . . . Allies Hacked . | . . . Hacks Repelled . | . . . Allies | -11 -10 -10 -------- Run | Yrd Mat Sub Total Allies . | . . . Largest Group . | . . . Highest-Rated Group . | . . . Highest-Rated Ally . | . . . Total Orders . | . . . Ally Attacks . | . . . Total Damage . | . . . Kills . | . . . Allies Corrupted . | . . . Allies Melted . | . . . Intel | -11 -10 -10 ------- Run | Yrd Mat Sub Active Infowar (turns) 1123 | . 845 278 Structural 278 | . . 278 Seismic 845 | . 845 . Robot Analysis Total . | . . . Derelict Logs Recovered 1 | . . 1 Drone Launches . | . . . Drone Recoveries . | . . . Exploration | -11 -10 -10 ------------- Run | Yrd Mat Sub Turns Passed 3053 | 138 1089 1826 Spaces Moved 1396 | 79 603 714 Core 8 | 8 . . Treads 1 | . 1 . Legs . | . . . Wheels 1387 | 71 602 714 Hover . | . . . Flight . | . . . Fastest Speed 50 | 50 80 140 Average Speed 164 | 87 116 212 Slowest Speed 320 | 150 320 215 Overloaded Moves . | . . . Propulsion Burnouts . | . . . Robots Hopped . | . . . Potential Cave-ins . | . . . Cave-ins Triggered . | . . . Exploration Rate (%) 41 | 3 70 51 Regions Visited 2 Branch Regions 1 Pre-discovered Areas . | . . . Known Exits Taken . | . . . Unknown Exits Taken 2 | 1 1 . Scrap Searched . | . . . Spaces Dug 10 | . 10 . Terrain Destroyed 13 | . 11 2 Melee . | . . . Projectile 13 | . 11 2 AOE . | . . . Terrain Rammed . | . . . Walls Destroyed . | . . . Machines Disabled . | . . . Actions | -11 -10 -10 --------- Run | Yrd Mat Sub Total 1869 | 115 874 880 Wait 252 | . 179 73 Move 1394 | 78 602 714 Hop . | . . . Pick Up 34 | 11 11 12 Fast Attach 8 | 7 1 . Attach 7 | . 1 6 Detach . | . . . Swap 36 | . 19 17 Drop 15 | 3 10 2 Fire 123 | 16 51 56 Melee . | . . . Ram . | . . . Kick . | . . . Crush . | . . . Escape Stasis . | . . . Rewire . | . . . Trap . | . . . Miscellaneous . | . . . Route ------- -11/Scrapyard -10/Materials (discovered 5 exits: [*Mat x2] / [*Min x2] / [*Sub]) -10/Subcaves (discovered 2 exits: [*Mat x2]) History --------- Turn | Location | Event 23 | -11/Scrapyard | Discovered new exit (range 16) 139 | -11/Scrapyard | Entered Materials 185 | -10/Materials | Discovered new exit (range 16) 274 | -10/Materials | Discovered new exit (range 13) 341 | -10/Materials | Build established: Mutant 361 | -10/Materials | Discovered new exit (range 6) 680 | -10/Materials | Discovered new exit (range 8) 739 | -10/Materials | Derelicts attacked the area 888 | -10/Materials | Discovered new exit (range 5) 1228 | -10/Materials | Entered Subcaves 1247 | -10/Subcaves | Core integrity fell below 50% 1272 | -10/Subcaves | A swath of the cavern ceiling suddenly collapsed 1434 | -10/Subcaves | Discovered new exit (range 12) 2320 | -10/Subcaves | A swath of the cavern ceiling suddenly collapsed 2527 | -10/Subcaves | Core integrity fell below 20% 2653 | -10/Subcaves | Lost 3 parts (2n1u) 2711 | -10/Subcaves | Discovered new exit (range 15) 3054 | -10/Subcaves | Destroyed by QP-NX5(R) with Subdweller Laser Last Messages --------------- 02863_ System corrupted: Substantial component data lost. 02881_ System corrupted: Heat flow error (+235). 02947_ S-10 Pest destroyed. 02953_ G-34 Mercenary destroyed. 02959_ Y-45 Defender Imp. Ion Engine blasted off. 02962_ Y-45 Defender destroyed. 02965_ Heat Sink fries itself beyond repair. 02966_ Aluminum Leg fries itself beyond repair. 02966_ Subatomizers dissect the Imp. Ion Engine. 02972_ Acquired Lgt. Treads. 02973_ Acquired 36 matter. 02975_ Heat Sink fries itself beyond repair. 02975_ Acquired 4 matter. 02977_ Acquired 9 matter. 02981_ Acquired 1 matter. 02994_ Subatomizers dissect the Imp. Ion Engine. 02995_ System corrupted: Matter fused (-7). 03028_ |WUP=YX5AKYPKQJYGMZLKM<:4ZW|&95PII8RR5D Map ----- +----------------------------------------------------+ | ## " #?##"##??## ##???????????? | | ### " ######????### ## ##??????????? | | #### " ###????????### #### ### #??????????? | | #######" ####?????????######??###?#####??????????? | | ####### #????????????????????????????????????? | | ### ##????????????????????????????????????? | | ### ##????????????????????????????????????? | | ### ##????????????????????????????????????? | | ###????????????????????????????????????? | | ##?????????????????????????????????????? | | #####?????????????????????????????????????? | | ##????????????????????????????????????????? | | ## ###????????????????????????????????????????? | | ##########????????????????????????????????????? | | ## #????????????????????????????????????? | | ## #????????????????????????????????????? | | # # #?????????????????????????????????????? | | ## % #??????????????????????????????????????? | | ### * #??????####????????????????????????????? | | #### #####??## ##??####?????????????????????? | | #?##### ## #### #### #?????????????????????? | | #???## # ## ## #?????????????????????? | | ##???## ##?????????????????????? | | ###??# ######?????????????????? | | ###??# ## # #???????????????? | | ##??#### ###### @ R "????????? | | ###??# #????## ## # ## "??????? | | ##?# ##?????## #? ##?????????????? | | # ##?## ##???????## #?? ""?????????????? | | ### #######?????????##### #??# "" ????????????? | | # # #????????????????## #???###""????????????? | | ##????????????????# #???????"????????????? | | ## ##??????????????? " #????????????????????? | | ### #??????????????? " ????????????????????? | | ### #??????????????? ???????????????????? | | ?# #??????????????? " ??????????????????? | | ?# ##??????????????? "?????????????????? | | ?## # #???????????????? "" ????????????????? | | ??#### ##???????????????? ??? ????????????????? | | ???## #???????????????? ???#????????????????? | | ??## #?????##???????????????????????????????# | | ??# #???## ###?????????????????????????????# | | ### ##??# ##????????????????????????????# | | ### #### ##???????????????????????????# | | ## ??????????????????????#### | | ????????????????????##### | | # # # ???????????????###### | | ##### ## ??????????????????? | | ????## ########???????????????????????? | | ????## #?######????????????????????????????# | +----------------------------------------------------+ Best States ------------- Heat Dissipation 25 Energy Generation 10 Energy Capacity 250 Matter Stores 300 Matter Capacity 300 Sight Range 16 Terrain Scan Density 10 Armor Coverage 150 Evasion (%) 44 Recoil Reduction 2 Item Schematics ----------------- None Robot Schematics ------------------ None Fabricated ------------ Nothing Repaired ---------- Nothing Studied --------- None Alien Tech Used ----------------- None Achievements -------------- None Challenges ------------ None Game ------ Seed JammingCommBox Manual? 0 Play Time 00:20:36 Cumulative 407.9 hours Start 2026.02.26 @ 09:44:32 End 2026.02.26 @ 10:02:42 Sessions 1 Manual Loads 0 Difficulty Rogue Special Mode None Game No. 454 Rogue 454 Adventurer 0 Explorer 0 Win Type - Total 6 Types 3/1/1/1/0/0/0/0/0/0 Lore% 76 Gallery% 68 Achievement% 44 Wizard Run 0 Options --------- Layout 1 ASCII 0 Keyboard 0 Movement Numpad Keybinds 0 Fullscreen 1 Font 32/SmallcapsGlow Map View 50x35 Zoom Use 0% Tactical HUD 1 Map Filters NONE Filters NONE Steam 1 RUN: b10829fb-455c-4568-bec2-c79ea9c2d6ed